fUSD/lending_fUSD_20250314
["ID","MTS","AMOUNT","RATE_DAILY","PERIOD"]
[356128331,1741936778765,-502.30570998,0.00021917,3]
[356128332,1741936778788,-500.0,0.00021917,3]
[356128333,1741936778810,-500.44630989,0.00021917,3]
[356128334,1741936778831,-162.69613618,0.00021917,3]
[356128335,1741936778852,-614.84,0.00021917,3]
[356128336,1741936778874,-503.24742713,0.00021917,3]
[356128337,1741936778895,-500.0,0.00021917,3]
[356128338,1741936778916,-500.0,0.00021917,3]
[356128339,1741936778938,-500.0,0.00021917,3]
[356128340,1741936778959,-558.63,0.00021917,3]
[356128341,1741936778981,-500.0,0.00021917,3]
[356128342,1741936779003,-353.9101226,0.00021917,3]
[356128343,1741936779023,-500.0,0.00021917,3]
[356128344,1741936779044,-500.0,0.00021917,3]
[356128345,1741936779064,-504.98648556,0.00021917,3]
[356128346,1741936779085,-500.0,0.00021917,3]
[356128347,1741936779106,-500.0,0.00021917,3]
[356128348,1741936779129,-500.0,0.00021917,3]
[356128349,1741936779150,-501.95938958,0.00021917,3]
[356128350,1741936779172,-500.0,0.00021917,3]
[356128351,1741936779193,-583.61,0.00021917,3]
[356128352,1741936779215,-500.0,0.00021917,3]
[356128353,1741936779236,-501.90647237,0.00021917,3]
[356128354,1741936779257,-500.0,0.00021917,3]
[356128355,1741936779279,-500.0,0.00021917,3]
[356128356,1741936779300,-563.92290845,0.00021917,3]
[356128357,1741936779320,-500.0,0.00021917,3]
[356128358,1741936779341,-500.0,0.00021917,3]
[356128359,1741936779362,-500.0,0.00021917,3]
[356128360,1741936779382,-500.0,0.00021917,3]
[356128361,1741936779404,-564.82327851,0.00021917,3]
[356128362,1741936779425,-632.01064383,0.00021917,3]
[356128363,1741936779446,-867.64,0.00021917,3]
[356128364,1741936779468,-530.92068507,0.00021917,3]
[356128365,1741936779490,-500.0,0.00021917,3]
[356128366,1741936779511,-500.0,0.00021917,3]
[356128367,1741936779532,-290.3349123,0.00021917,3]
[356128368,1741936779553,-500.0,0.00021917,3]
[356128369,1741936779574,-504.35437898,0.00021917,3]
[356128370,1741936779596,-500.0,0.00021917,3]
[356128371,1741936779618,-500.0,0.00021917,3]
[356128372,1741936779641,-500.0,0.00021917,3]
[356128373,1741936779663,-500.0,0.00021917,3]
[356128374,1741936779684,-500.0,0.00021917,3]
[356128375,1741936779708,-500.0,0.00021917,3]
[356128376,1741936779730,-510.40159885,0.00021917,3]
[356128377,1741936779754,-1548.19,0.00021917,3]
[356128378,1741936779776,-500.0,0.00021917,3]
[356128379,1741936779801,-500.46977652,0.00021917,3]
[356128380,1741936779824,-500.0,0.00021917,3]
[356128381,1741936779847,-500.0,0.00021917,3]
[356128382,1741936779870,-1354.02,0.00021917,3]
[356128383,1741936779892,-505.15117592,0.00021917,3]
[356128384,1741936779914,-500.0,0.00021917,3]
[356128385,1741936779936,-500.69250118,0.00021917,3]
[356128386,1741936779958,-500.0,0.00021917,3]
[356128387,1741936779980,-502.43046434,0.00021917,3]
[356128388,1741936780002,-500.0,0.00021917,3]
[356128389,1741936780026,-500.0,0.00021917,3]
[356128390,1741936780048,-151.0,0.00021917,2]
[356128391,1741936780071,-151.0,0.00021917,2]
[356128392,1741936780092,-500.0,0.00021917,3]
[356128393,1741936780114,-151.0,0.00021917,2]
[356128394,1741936780137,-151.0,0.00021917,2]
[356128395,1741936780159,-500.0,0.00021917,3]
[356128396,1741936780181,-151.0,0.00021917,2]
[356128397,1741936780202,-500.0,0.00021917,3]
[356128398,1741936780225,-500.0,0.00021917,3]
[356128399,1741936780248,-151.0,0.00021917,2]
[356128400,1741936780270,-500.0,0.00021917,3]
[356128401,1741936780293,-500.0,0.00021917,3]
[356128402,1741936780317,-151.0,0.00021917,2]
[356128403,1741936780340,-151.0,0.00021917,2]
[356128404,1741936780362,-295.825348,0.00021917,2]
[356128405,1741936780384,-523.4132867,0.00021917,3]
[356128406,1741936780406,-500.0,0.00021917,3]
[356128407,1741936780429,-500.0,0.00021917,3]
[356128408,1741936780450,-500.0,0.00021917,3]
[356128409,1741936780473,-500.0,0.00021917,3]
[356128410,1741936780496,-500.0,0.00021917,3]
[356128411,1741936780518,-502.14668994,0.00021917,3]
[356128412,1741936780541,-502.63121251,0.00021917,3]
[356128413,1741936780564,-500.0,0.00021917,3]
[356128414,1741936780586,-500.0,0.00021917,3]
[356128415,1741936780609,-500.0,0.00021917,3]
[356128416,1741936780634,-501.60133579,0.00021917,3]
[356128417,1741936780657,-500.0,0.00021917,3]
[356128418,1741936780681,-500.0,0.00021917,3]
[356128419,1741936780702,-500.0,0.00021917,3]
[356128420,1741936780725,-500.0,0.00021917,3]
[356128421,1741936780748,-501.08262152,0.00021917,3]
[356128422,1741936780770,-500.0,0.00021917,3]
[356128423,1741936780793,-500.0,0.00021917,3]
[356128424,1741936780814,-500.0,0.00021917,3]
[356128425,1741936780836,-503.50920629,0.00021917,3]
[356128426,1741936780858,-529.42,0.00021917,3]
[356128427,1741936780881,-502.81436042,0.00021917,3]
[356128428,1741936780902,-500.0,0.00021917,2]
[356128429,1741936780924,-596.64,0.00021917,3]
[356128430,1741936780946,-506.3247668,0.00021917,3]
[356128431,1741936780970,-500.0,0.00021917,3]
[356128432,1741936780993,-575.35,0.00021917,3]
[356128433,1741936781016,-501.60000624,0.00021917,3]
[356128434,1741936781038,-500.0,0.00021917,3]
[356128435,1741936781060,-500.0,0.00021917,3]
[356128436,1741936781082,-500.0,0.00021917,3]
[356128437,1741936781104,-500.0,0.00021917,3]
[356128438,1741936781126,-500.0,0.00021917,3]
[356128439,1741936781149,-500.71933703,0.00021917,3]
[356128440,1741936781171,-503.32509049,0.00021917,3]
[356128441,1741936781193,-500.0,0.00021917,3]
[356128442,1741936781215,-500.0,0.00021917,3]
[356128443,1741936781241,-503.4561014,0.00021917,3]
[356128444,1741936781264,-500.98417938,0.00021917,3]
[356128445,1741936781287,-501.45499963,0.00021917,3]
[356128446,1741936781310,-501.08186203,0.00021917,3]
[356128447,1741936781331,-500.43551017,0.00021917,3]
[356128448,1741936781354,-500.0,0.00021917,3]
[356128449,1741936781375,-501.84578954,0.00021917,3]
[356128450,1741936781397,-501.91713352,0.00021917,3]
[356128451,1741936781420,-500.0,0.00021917,3]
[356128452,1741936781442,-500.0,0.00021917,3]
[356128453,1741936781683,-597.12,0.00021917,3]
[356128454,1741936781706,-534.38496941,0.00021917,3]
[356128455,1741936781733,-500.60453914,0.00021917,3]
[356128456,1741936781756,-648.45,0.00021917,3]
[356128457,1741936781779,-569.6,0.00021917,3]
[356128458,1741936781804,-502.17993191,0.00021917,3]
[356128459,1741936781826,-500.77130735,0.00021917,3]
[356128460,1741936781849,-500.0,0.00021917,3]
[356128461,1741936781872,-151.0,0.00021917,2]
[356128462,1741936781897,-151.0,0.00021917,2]
[356128463,1741936781920,-151.0,0.00021917,2]
[356128464,1741936781942,-179.25229,0.00021917,2]
[356128465,1741936781965,-462.18981174,0.00021917,3]
[356128466,1741936781987,-500.0,0.00021917,3]
[356128467,1741936782009,-507.40295404,0.00021917,3]
[356128468,1741936782031,-500.58368701,0.00021917,3]
[356128469,1741936782053,-500.0,0.00021917,3]
[356128470,1741936782075,-500.0,0.00021917,3]
[356128471,1741936782097,-627.74,0.00021917,3]
[356128472,1741936782118,-183.38731418,0.00021917,3]
[356128473,1741936782140,-500.0,0.00021917,3]
[356128474,1741936782162,-500.73476317,0.00021917,3]
[356128475,1741936782184,-501.68190786,0.00021917,3]
[356128476,1741936782205,-500.0,0.00021917,3]
[356128477,1741936782228,-500.0,0.00021917,3]
[356128478,1741936782251,-501.36133068,0.00021917,3]
[356128479,1741936782274,-525.02972705,0.00021917,3]
[356128480,1741936782295,-501.9876072,0.00021917,3]
[356128481,1741936782318,-500.0,0.00021917,3]
[356128482,1741936782340,-500.0,0.00021917,3]
[356128483,1741936782362,-500.0,0.00021917,3]
[356128484,1741936782383,-691.7,0.00021917,3]
[356128485,1741936782406,-500.61894742,0.00021917,3]
[356128486,1741936782428,-500.0,0.00021917,3]
[356128487,1741936782450,-500.0,0.00021917,3]
[356128488,1741936782472,-500.0,0.00021917,3]
[356128489,1741936782493,-501.48562545,0.00021917,3]
[356128490,1741936782515,-500.0,0.00021917,3]
[356128491,1741936782536,-500.0,0.00021917,3]
[356128492,1741936782557,-500.0,0.00021917,3]
[356128493,1741936782579,-500.0,0.00021917,3]
[356128494,1741936782601,-505.30226889,0.00021917,3]
[356128495,1741936782623,-501.07229596,0.00021917,3]
[356128496,1741936782648,-500.0,0.00021917,3]
[356128497,1741936782670,-501.30349093,0.00021917,3]
[356128498,1741936782693,-500.0,0.00021917,3]
[356128499,1741936782717,-295.31447246,0.00021917,3]
[356128500,1741936782741,-500.0,0.00021917,3]
[356128501,1741936782766,-500.0,0.00021917,3]
[356128502,1741936782788,-500.0,0.00021917,3]
[356128503,1741936782812,-500.0,0.00021917,3]
[356128504,1741936782834,-500.67646382,0.00021917,3]
[356128505,1741936782856,-500.0,0.00021917,3]
[356128506,1741936782878,-500.0,0.00021917,3]
[356128507,1741936782900,-500.0,0.00021917,3]
[356128508,1741936782921,-501.53411539,0.00021917,3]
[356128509,1741936782943,-500.0,0.00021917,3]
[356128510,1741936782965,-500.0,0.00021917,3]
[356128511,1741936782986,-151.0,0.00021917,2]
[356128512,1741936783008,-151.0,0.00021917,2]
[356128513,1741936783030,-500.0,0.00021917,3]
[356128514,1741936783052,-500.0,0.00021917,3]
[356128515,1741936783074,-151.0,0.00021917,2]
[356128516,1741936783094,-151.0,0.00021917,2]
[356128517,1741936783118,-503.42308244,0.00021917,3]
[356128518,1741936783140,-151.0,0.00021917,2]
[356128519,1741936783162,-692.8,0.00021917,3]
[356128520,1741936783184,-151.0,0.00021917,2]
[356128521,1741936783207,-500.42561577,0.00021917,3]
[356128522,1741936783229,-151.0,0.00021917,2]
[356128523,1741936783251,-500.0,0.00021917,3]
[356128524,1741936783272,-157.663827,0.00021917,2]
[356128525,1741936783293,-500.40856906,0.00021917,3]
[356128526,1741936783314,-820.39,0.00021917,3]
[356128527,1741936783335,-501.14439584,0.00021917,3]
[356128528,1741936783357,-500.0,0.00021917,3]
[356128529,1741936783379,-500.0,0.00021917,3]
[356128530,1741936783401,-500.0,0.00021917,3]
[356128531,1741936783422,-321.54755541,0.00021917,3]
[356128532,1741936783444,-501.32913145,0.00021917,3]
[356128533,1741936783466,-500.0,0.00021917,3]
[356128534,1741936783488,-500.0,0.00021917,3]
[356128535,1741936783510,-500.0,0.00021917,3]
[356128536,1741936783532,-500.0,0.00021917,3]
[356128537,1741936783554,-494.28168469,0.00021917,3]
[356128538,1741936783576,-500.0,0.00021917,3]
[356128539,1741936783598,-500.62884887,0.00021917,3]
[356128540,1741936783620,-568.34943842,0.00021917,3]
[356128541,1741936783647,-178.05743461,0.00021917,3]
[356128542,1741936783671,-926.76,0.00021917,3]
[356128543,1741936783692,-502.17654493,0.00021917,3]
[356128544,1741936783715,-500.0,0.00021917,3]
[356128545,1741936783737,-500.8065133,0.00021917,3]
[356128546,1741936783759,-500.0,0.00021917,3]
[356128547,1741936783780,-500.0,0.00021917,3]
[356128548,1741936783804,-1299.64,0.00021917,3]
[356128549,1741936783826,-503.06024188,0.00021917,3]
[356128550,1741936783849,-500.0,0.00021917,3]
[356128551,1741936783871,-831.57,0.00021917,3]
[356128552,1741936783893,-318.81468429,0.00021917,3]
[356128553,1741936783915,-500.0,0.00021917,3]
[356128554,1741936783936,-500.31359854,0.00021917,3]
[356128555,1741936783958,-505.14802947,0.00021917,3]
[356128556,1741936783980,-500.0,0.00021917,3]
[356128557,1741936784002,-500.0,0.00021917,3]
[356128558,1741936784025,-500.0,0.00021917,3]
[356128559,1741936784047,-507.35463481,0.00021917,3]
[356128560,1741936784070,-500.0,0.00021917,3]
[356128561,1741936784093,-501.26853444,0.00021917,3]
[356128562,1741936784114,-500.0,0.00021917,3]
[356128563,1741936784137,-500.0,0.00021917,3]
[356128564,1741936784161,-500.0,0.00021917,3]
[356128565,1741936784184,-2030.3,0.00021917,3]
[356128566,1741936784207,-500.0,0.00021917,3]
[356128567,1741936784228,-500.0,0.00021917,3]
[356128568,1741936784250,-500.84966762,0.00021917,3]
[356128569,1741936784271,-500.94261308,0.00021917,3]
[356128570,1741936784293,-502.75501281,0.00021917,3]
[356128571,1741936784315,-515.60804082,0.00021917,3]
[356128572,1741936784337,-501.27587722,0.00021917,3]
[356128573,1741936784359,-503.34691339,0.00021917,3]
[356128574,1741936784380,-500.48982893,0.00021917,3]
[356128575,1741936784402,-3639.46,0.00021917,3]
[356128576,1741936784423,-500.0,0.00021917,3]
[356128577,1741936784443,-502.15373196,0.00021917,3]
[356128578,1741936784464,-500.0,0.00021917,3]
[356128579,1741936784485,-1846.63,0.00021917,3]
[356128580,1741936784506,-500.50324148,0.00021917,3]
[356128581,1741936784526,-502.12697878,0.00021917,3]
[356128582,1741936784548,-480.852658,0.00021917,3]
[356128583,1741936784569,-503.52845502,0.00021917,3]
[356128584,1741936784590,-500.5146749,0.00021917,3]
[356128585,1741936784612,-500.32680707,0.00021917,3]
[356128586,1741936784637,-1224.97,0.00021917,3]
[356128587,1741936784659,-500.0,0.00021917,3]
[356128588,1741936784681,-500.0,0.00021917,3]
[356128589,1741936784703,-1644.43,0.00021917,3]
[356128590,1741936784727,-875.7,0.00021917,3]
[356128591,1741936784748,-1493.72,0.00021917,3]
[356128592,1741936784771,-616.8,0.00021917,3]
[356128593,1741936784791,-500.43634841,0.00021917,3]
[356128594,1741936784813,-506.89,0.00021917,3]
[356128595,1741936784835,-499.13118673,0.00021917,3]
[356128596,1741936784856,-500.0,0.00021917,3]
[356128597,1741936784878,-500.0,0.00021917,3]
[356128598,1741936784901,-500.0,0.00021917,3]
[356128599,1741936784922,-498.08335618,0.00021917,3]
[356128600,1741936784944,-530.34,0.00021917,3]
[356128601,1741936784967,-153.467374,0.00021917,3]
[356128602,1741936784988,-432.18911746,0.00021917,3]
[356128603,1741936785010,-500.0,0.00021917,3]
[356128604,1741936785032,-534.7,0.00021917,3]
[356128605,1741936785209,-500.0,0.00021917,3]
[356128606,1741936785264,-505.10034721,0.00021917,3]
[356128607,1741936785287,-528.18,0.00021917,3]
[356128608,1741936785309,-500.0,0.00021917,3]
[356128609,1741936785332,-490.07266464,0.00021917,3]
[356128610,1741936785354,-1825.29,0.00021917,3]
[356128611,1741936785376,-500.0,0.00021917,3]
[356128612,1741936785398,-154.487704,0.00021917,3]
[356128613,1741936785419,-502.95890864,0.00021917,3]
[356128614,1741936785441,-500.0,0.00021917,3]
[356128615,1741936785463,-500.0,0.00021917,2]
[356128616,1741936785486,-500.0,0.00021917,3]
[356128617,1741936785511,-153.253937,0.00021917,3]
[356128618,1741936785533,-500.0,0.00021917,3]
[356128619,1741936785555,-507.11218505,0.00021917,3]
[356128620,1741936785578,-500.0,0.00021917,3]
[356128621,1741936785600,-506.95777564,0.00021917,3]
[356128622,1741936785623,-500.0,0.00021917,3]
[356128623,1741936785650,-500.0,0.00021917,3]
[356128624,1741936785673,-501.53286799,0.00021917,3]
[356128625,1741936785695,-500.0,0.00021917,3]
[356128626,1741936785720,-500.0,0.00021917,3]
[356128627,1741936785742,-500.0,0.00021917,3]
[356128628,1741936785765,-500.0,0.00021917,3]
[356128629,1741936785787,-500.0,0.00021917,3]
[356128630,1741936785810,-503.92795487,0.00021917,3]
[356128631,1741936785832,-1450.38,0.00021917,3]
[356128632,1741936785853,-960.85,0.00021917,3]
[356128633,1741936785877,-500.0,0.00021917,3]
[356128634,1741936785900,-500.0,0.00021917,3]
[356128635,1741936785922,-2324.14,0.00021917,3]
[356128636,1741936785943,-500.0,0.00021917,3]
[356128637,1741936785965,-500.0,0.00021917,3]
[356128638,1741936785987,-910.74,0.00021917,3]
[356128639,1741936786009,-600.70351818,0.00021917,3]
[356128640,1741936786031,-502.86938732,0.00021917,3]
[356128641,1741936786053,-500.0,0.00021917,3]
[356128642,1741936786075,-500.0,0.00021917,3]
[356128643,1741936786097,-601.73,0.00021917,3]
[356128644,1741936786119,-500.51595284,0.00021917,3]
[356128645,1741936786140,-500.0,0.00021917,3]
[356128646,1741936786162,-530.29,0.00021917,3]
[356128647,1741936786183,-501.46460889,0.00021917,3]
[356128648,1741936786205,-1089.91,0.00021917,3]
[356128649,1741936786226,-501.84870862,0.00021917,3]
[356128650,1741936786248,-503.89473859,0.00021917,3]
[356128651,1741936786270,-500.0,0.00021917,3]
[356128652,1741936786292,-501.40834692,0.00021917,3]
[356128653,1741936786313,-500.0,0.00021917,3]
[356128654,1741936786335,-561.64,0.00021917,3]
[356128655,1741936786357,-504.01864898,0.00021917,3]
[356128656,1741936786379,-495.39752786,0.00021917,3]
[356128657,1741936786402,-500.0,0.00021917,3]
[356128658,1741936786423,-500.0,0.00021917,3]
[356128659,1741936786444,-500.0,0.00021917,3]
[356128660,1741936786466,-500.0,0.00021917,3]
[356128661,1741936786489,-500.70849822,0.00021917,3]
[356128662,1741936786511,-500.0,0.00021917,3]
[356128663,1741936786532,-500.0,0.00021917,3]
[356128664,1741936786553,-502.46301908,0.00021917,3]
[356128665,1741936786575,-500.74442017,0.00021917,3]
[356128666,1741936786597,-500.0,0.00021917,3]
[356128667,1741936786619,-500.0,0.00021917,3]
[356128668,1741936786645,-500.0,0.00021917,3]
[356128669,1741936786667,-500.0,0.00021917,3]
[356128670,1741936786689,-501.76095907,0.00021917,3]
[356128671,1741936786713,-500.0,0.00021917,3]
[356128672,1741936786736,-500.0,0.00021917,3]
[356128673,1741936786759,-500.0,0.00021917,3]
[356128674,1741936786781,-614.74,0.00021917,3]
[356128675,1741936786803,-2000.0,0.00021917,9]
[356128676,1741936786824,-977.71,0.00021917,3]
[356128677,1741936786846,-501.35817489,0.00021917,3]
[356128678,1741936786868,-500.0,0.00021917,2]
[356128679,1741936786891,-500.0,0.00021917,3]
[356128680,1741936786913,-500.0,0.00021917,3]
[356128681,1741936786935,-503.628684,0.00021917,3]
[356128682,1741936786958,-500.73190202,0.00021917,3]
[356128683,1741936786982,-1144.59,0.00021917,3]
[356128684,1741936787007,-501.01514211,0.00021917,3]
[356128685,1741936787033,-500.0,0.00021917,3]
[356128686,1741936787058,-500.0,0.00021917,3]
[356128687,1741936787082,-828.55,0.00021917,3]
[356128688,1741936787104,-500.0,0.00021917,3]
[356128689,1741936787127,-500.0,0.00021917,3]
[356128690,1741936787152,-636.4,0.00021917,3]
[356128691,1741936787175,-523.87,0.00021917,3]
[356128692,1741936787197,-500.0,0.00021917,3]
[356128693,1741936787219,-565.79,0.00021917,3]
[356128694,1741936787242,-500.0,0.00021917,3]
[356128695,1741936787264,-502.14126524,0.00021917,3]
[356128696,1741936787287,-602.5,0.00021917,3]
[356128697,1741936787309,-623.06431122,0.00021917,3]
[356128698,1741936787330,-500.0,0.00021917,3]
[356128699,1741936787353,-500.0,0.00021917,3]
[356128700,1741936787376,-500.0,0.00021917,3]
[356128701,1741936787399,-523.4407081,0.00021917,3]
[356128702,1741936787422,-508.64298861,0.00021917,3]
[356128703,1741936787444,-500.41759647,0.00021917,3]
[356128704,1741936787466,-500.0,0.00021917,3]
[356128705,1741936787487,-643.06729556,0.00021917,3]
[356128706,1741936787509,-500.0,0.00021917,3]
[356128707,1741936787531,-500.0,0.00021917,3]
[356128708,1741936787553,-505.33659329,0.00021917,3]
[356128709,1741936787574,-1550.67,0.00021917,3]
[356128710,1741936787596,-500.0,0.00021917,3]
[356128711,1741936787618,-500.0,0.00021917,3]
[356128712,1741936787645,-500.0,0.00021917,3]
[356128713,1741936787667,-500.0,0.00021917,3]
[356128714,1741936787688,-700.51,0.00021917,3]
[356128715,1741936787711,-500.0,0.00021917,3]
[356128716,1741936787732,-512.87778507,0.00021917,3]
[356128717,1741936787754,-504.8887846,0.00021917,3]
[356128718,1741936787776,-502.16626246,0.00021917,3]
[356128719,1741936787798,-500.0,0.00021917,3]
[356128720,1741936787820,-500.0,0.00021917,3]
[356128721,1741936787842,-500.0,0.00021917,3]
[356128722,1741936787864,-500.0,0.00021917,3]
[356128723,1741936787886,-500.0,0.00021917,3]
[356128724,1741936787908,-687.0,0.00021917,3]
[356128725,1741936787930,-500.0,0.00021917,3]
[356128726,1741936787951,-500.0,0.00021917,3]
[356128727,1741936787974,-500.0,0.00021917,3]
[356128728,1741936787996,-500.0,0.00021917,3]
[356128729,1741936788017,-500.0,0.00021917,3]
[356128730,1741936788039,-500.0,0.00021917,3]
[356128731,1741936788062,-500.0,0.00021917,3]
[356128732,1741936788086,-500.0,0.00021917,3]
[356128733,1741936788110,-501.98789676,0.00021917,3]
[356128734,1741936788132,-500.0,0.00021917,3]
[356128735,1741936788155,-500.41632933,0.00021917,3]
[356128736,1741936788179,-500.0,0.00021917,3]
[356128737,1741936788201,-502.34156839,0.00021917,3]
[356128738,1741936788225,-500.0,0.00021917,3]
[356128739,1741936788248,-500.0,0.00021917,3]
[356128740,1741936788271,-500.0,0.00021917,3]
[356128741,1741936788294,-500.0,0.00021917,3]
[356128742,1741936788317,-500.0,0.00021917,3]
[356128743,1741936788340,-500.0,0.00021917,3]
[356128744,1741936788364,-817.75,0.00021917,3]
[356128745,1741936788387,-500.0,0.00021917,3]
[356128746,1741936788410,-820.47,0.00021917,3]
[356128747,1741936788432,-713.63,0.00021917,3]
[356128748,1741936788455,-500.0,0.00021917,3]
[356128749,1741936788478,-500.0,0.00021917,3]
[356128750,1741936788500,-500.0,0.00021917,3]
[356128751,1741936788522,-500.0,0.00021917,3]
[356128752,1741936788545,-500.0,0.00021917,3]
[356128753,1741936788568,-500.0,0.00021917,3]
[356128754,1741936788591,-505.64399324,0.00021917,3]
[356128755,1741936788613,-500.0,0.00021917,3]
[356128756,1741936788640,-505.08067059,0.00021917,3]
[356128757,1741936788666,-500.0,0.00021917,3]
[356128758,1741936788868,-996.86,0.00021917,3]
[356128759,1741936788892,-500.0,0.00021917,3]
[356128760,1741936788917,-642.86,0.00021917,3]
[356128761,1741936788941,-500.0,0.00021917,3]
[356128762,1741936788964,-605.7,0.00021917,3]
[356128763,1741936788988,-1317.11,0.00021917,3]
[356128764,1741936789013,-500.0,0.00021917,3]
[356128765,1741936789037,-500.0,0.00021917,3]
[356128766,1741936789061,-1005.89,0.00021917,3]
[356128767,1741936789084,-500.0,0.00021917,3]
[356128768,1741936789108,-500.0,0.00021917,3]
[356128769,1741936789131,-509.62021266,0.00021917,3]
[356128770,1741936789157,-500.0,0.00021917,3]
[356128771,1741936789181,-500.0,0.00021917,3]
[356128772,1741936789204,-648.85132402,0.00021917,3]
[356128773,1741936789228,-547.37,0.00021917,3]
[356128774,1741936789251,-500.0,0.00021917,3]
[356128775,1741936789273,-309.53048506,0.00021917,3]
[356128776,1741936789297,-500.0,0.00021917,3]
[356128777,1741936789320,-500.0,0.00021917,3]
[356128778,1741936789343,-527.11,0.00021917,3]
[356128779,1741936789364,-500.90340547,0.00021917,3]
[356128780,1741936789387,-500.0,0.00021917,3]
[356128781,1741936789410,-500.0,0.00021917,3]
[356128782,1741936789433,-500.0,0.00021917,3]
[356128783,1741936789456,-502.20316151,0.00021917,3]
[356128784,1741936789478,-505.38486677,0.00021917,3]
[356128785,1741936789501,-500.0,0.00021917,3]
[356128786,1741936789523,-500.55387571,0.00021917,3]
[356128787,1741936789546,-500.0,0.00021917,3]
[356128788,1741936789569,-500.0,0.00021917,3]
[356128789,1741936789591,-500.0,0.00021917,3]
[356128790,1741936789613,-500.0,0.00021917,3]
[356128791,1741936789637,-500.0,0.00021917,3]
[356128792,1741936789660,-669.94,0.00021917,3]
[356128793,1741936789682,-500.0,0.00021917,3]
[356128794,1741936789705,-500.0,0.00021917,3]
[356128795,1741936789726,-503.13457555,0.00021917,3]
[356128796,1741936789748,-500.0,0.00021917,3]
[356128797,1741936789770,-1385.58,0.00021917,3]
[356128798,1741936789793,-502.99148331,0.00021917,3]
[356128799,1741936789816,-500.0,0.00021917,3]
[356128800,1741936789838,-500.0,0.00021917,3]
[356128801,1741936789861,-500.0,0.00021917,3]
[356128802,1741936789884,-500.0,0.00021917,3]
[356128803,1741936789908,-500.0,0.00021917,3]
[356128804,1741936789932,-500.0,0.00021917,3]
[356128805,1741936789955,-500.0,0.00021917,3]
[356128806,1741936789978,-500.0,0.00021917,3]
[356128807,1741936790002,-505.67234694,0.00021917,3]
[356128808,1741936790025,-500.0,0.00021917,3]
[356128809,1741936790048,-500.0,0.00021917,3]
[356128810,1741936790071,-500.0,0.00021917,3]
[356128811,1741936790094,-501.26412689,0.00021917,3]
[356128812,1741936790116,-677.48,0.00021917,3]
[356128813,1741936790141,-500.0,0.00021917,3]
[356128814,1741936790166,-550.15,0.00021917,3]
[356128815,1741936790189,-500.0,0.00021917,3]
[356128816,1741936790212,-500.0,0.00021917,3]
[356128817,1741936790236,-517.91,0.00021917,3]
[356128818,1741936790259,-500.0,0.00021917,3]
[356128819,1741936790282,-500.22545926,0.00021917,3]
[356128820,1741936790305,-500.0,0.00021917,3]
[356128821,1741936790328,-500.0,0.00021917,3]
[356128822,1741936790352,-797.96,0.00021917,3]
[356128823,1741936790375,-536.18,0.00021917,3]
[356128824,1741936790396,-500.0,0.00021917,3]
[356128825,1741936790419,-500.0,0.00021917,3]
[356128826,1741936790441,-500.0,0.00021917,3]
[356128827,1741936790464,-558.34,0.00021917,3]
[356128828,1741936790487,-517.45,0.00021917,3]
[356128829,1741936790509,-500.0,0.00021917,3]
[356128830,1741936790531,-500.0,0.00021917,3]